bitfinex/quotes_SOLUSD_20260310
["timestamp","ask_amount","ask_price","bid_price","bid_amount"]
[1773155448025,0.45280713,88.019,87.99,10.64668465]
[1773155448205,0.45280713,88.031,88.0,10.64668465]
[1773155448410,0.45280713,88.048,88.01,10.64668465]
[1773155449335,11.11370588,88.04,88.001,0.48856681]
[1773155449715,0.46702123,88.039,88.0,10.64668465]
[1773155450533,11.35757038,88.047,88.011,0.46771712]
[1773155450917,0.46702123,88.046,88.011,0.46771712]
[1773155451230,0.46702123,88.046,88.01,10.64668465]
[1773155451438,11.82326381,88.058,88.03,10.64668465]
[1773155451644,10.62107389,88.05,88.011,11.8299332]
[1773155451930,0.46702123,88.049,88.006,11.36285179]
[1773155452231,10.62107389,88.03,87.991,0.46771712]
[1773155452527,10.62107389,88.03,87.99,10.62107389]
[1773155452528,0.46702123,88.029,87.99,10.62107389]
[1773155453427,11.36002181,88.028,87.99,10.62107389]
[1773155453630,0.46702123,88.019,87.981,0.46771712]
[1773155454028,0.46702123,88.019,87.99,10.62107389]
[1773155454522,10.62107389,88.01,87.971,0.46771712]
[1773155454713,0.46702123,88.009,87.972,11.36725321]
[1773155455426,0.46702123,88.007,87.972,11.36725321]
[1773155456219,0.46702123,87.989,87.961,1.13686747]
[1773155456413,0.46702123,87.989,87.948,0.46771712]
[1773155456414,0.46702123,87.989,87.95,10.62107389]
[1773155456612,0.46702123,87.989,87.95,11.75808355]
[1773155457118,0.46702123,87.989,87.949,11.37022592]
[1773155457319,0.46702123,87.989,87.95,10.62107389]
[1773155457524,0.46702123,88.012,87.97,10.62107389]
[1773155457735,0.46702123,87.999,87.96,11.08879101]
[1773155458219,0.46702123,87.999,87.96,10.62107389]
[1773155458419,0.46702123,87.989,87.96,10.62107389]
[1773155458614,0.46702123,87.989,87.951,11.36996736]
[1773155458615,0.46702123,87.989,87.951,0.46771712]
[1773155458833,0.46702123,87.989,87.952,0.46771712]
[1773155459717,11.36518616,87.988,87.953,11.83742594]
[1773155460141,11.36518616,87.988,87.96,10.62107389]
[1773155460631,11.36518616,87.988,87.961,0.46771712]
[1773155460833,11.36363636,88.0,87.97,10.62107389]
[1773155461531,11.83065759,88.0,87.97,10.62107389]
[1773155461723,0.46702123,88.008,87.973,0.46771712]
[1773155461924,0.46702123,88.008,87.972,11.36725321]
[1773155461925,11.36187365,88.014,87.99,10.62107389]
[1773155462125,10.62107389,88.01,87.981,0.46771712]
[1773155462332,11.36187365,88.014,87.968,0.46771712]
[1773155462333,10.62107389,88.0,87.968,0.46771712]
[1773155462642,10.62107389,88.0,87.891,45.51085812]
[1773155462643,0.46702123,87.979,87.937,0.46771712]
[1773155462817,0.46702123,87.969,87.937,0.46771712]
[1773155463325,3.69383402,88.003,87.94,10.62107389]
[1773155463326,10.62107389,87.98,87.94,10.62107389]
[1773155463519,10.62107389,87.96,87.927,0.46771712]
[1773155463721,10.62107389,87.96,87.878,45.5172879]
[1773155463722,10.62107389,87.94,87.906,0.46771712]
[1773155463950,0.46702123,87.939,87.902,0.46771712]
[1773155464237,10.62107389,87.92,87.891,0.46771712]
[1773155464415,0.46702123,87.929,87.891,11.84544635]
[1773155465122,10.62107389,87.92,87.891,0.46771712]
[1773155465523,187.58739866,87.959,87.89,11.5778431]
[1773155465524,0.46702123,87.909,87.89,0.2]
[1773155465726,39.05613002,87.92,87.89,0.2]
[1773155466041,10.62107389,87.9,87.86,10.62107389]
[1773155466239,39.80936998,87.919,87.881,0.46771712]
[1773155466444,11.37410571,87.919,87.881,0.46771712]
[1773155466618,10.62107389,87.91,87.881,0.46771712]
[1773155466928,0.46702123,87.909,87.871,1.605749]
[1773155467130,11.37410571,87.919,87.849,11.38316884]
[1773155467131,0.46702123,87.899,87.86,11.08879101]
[1773155467332,10.62107389,87.89,87.86,0.46771712]
[1773155467517,0.46702123,87.879,87.849,11.38316884]
[1773155467718,11.84643359,87.878,87.842,11.38407595]
[1773155468234,10.62107389,87.87,87.837,11.38460123]
[1773155468435,39.82794327,87.878,87.815,1.13875761]
[1773155468436,10.62107389,87.86,87.832,11.38537207]
[1773155469654,10.62107389,87.87,87.84,10.62107389]
[1773155469961,0.46702123,87.884,87.841,0.46771712]
[1773155470243,10.62107389,87.9,87.861,0.46771712]
[1773155470427,0.46702123,87.909,87.87,10.62107389]
[1773155470626,0.46702123,87.899,87.861,0.46771712]
[1773155471722,11.3766937,87.899,87.863,0.46771712]
[1773155472441,10.62107389,87.89,87.862,11.3814846]
[1773155473344,11.84371493,87.899,87.863,0.46771712]
[1773155474231,0.46702123,87.898,87.862,11.3814846]
[1773155474427,11.3766937,87.899,87.862,11.3814846]
[1773155474428,11.3766937,87.899,87.863,0.46771712]
[1773155474833,0.46702123,87.898,87.863,0.46771712]
[1773155475341,21.99772653,87.9,87.87,10.62107389]
[1773155475552,11.37665264,87.9,87.87,10.62107389]
[1773155475731,0.46702123,87.899,87.862,11.3814846]
[1773155476248,10.62107389,87.88,87.85,0.46771712]
[1773155476428,10.62107389,87.88,87.85,11.08879101]
[1773155476762,0.46702123,87.889,87.851,11.38290969]
[1773155476923,0.46702123,87.889,87.85,10.62107389]
[1773155477129,0.46702123,87.859,87.826,11.38614988]
[1773155477653,3.69383402,87.892,87.816,11.3873885]
[1773155477654,0.46702123,87.849,87.816,11.3873885]
[1773155477829,0.46702123,87.849,87.802,28.47309586]
[1773155477830,10.62107389,87.84,87.811,11.3879846]
[1773155478360,0.46702123,87.837,87.8,10.62107389]
[1773155478530,11.38459436,87.838,87.81,10.62107389]
[1773155478845,11.38459436,87.838,87.803,0.46771712]
[1773155479840,0.46702123,87.848,87.81,10.62107389]
[1773155480059,0.46702123,87.848,87.803,0.46771712]
[1773155480060,10.62107389,87.84,87.803,0.46771712]
[1773155480256,0.56978249,87.839,87.804,11.38900277]
[1773155480428,0.56978249,87.839,87.81,10.62107389]
[1773155480630,0.56978249,87.85,87.81,10.62107389]
[1773155480929,10.62107389,87.84,87.805,0.57093481]
[1773155482025,11.38446475,87.839,87.807,0.57093481]
[1773155483036,0.56978249,87.861,87.821,0.57093481]
[1773155483232,0.56978249,87.849,87.811,0.57093481]
[1773155483634,10.62107389,87.84,87.811,0.57093481]
[1773155483950,11.95424724,87.839,87.802,11.3892622]
[1773155484151,0.56978249,87.838,87.802,11.3892622]
[1773155484540,0.56978249,87.838,87.802,11.96019701]
[1773155484746,0.56978249,87.838,87.803,0.57093481]
[1773155485354,0.56978249,87.829,87.791,11.39068925]
[1773155485655,39.84653391,87.837,87.791,11.39068925]
[1773155485656,11.38472397,87.837,87.801,0.57093481]
[1773155485949,10.62107389,87.85,87.811,0.57093481]
[1773155486142,11.38096647,87.866,87.831,0.57093481]
[1773155486347,0.56978249,87.865,87.831,0.57093481]
[1773155487531,28.44929001,87.876,87.84,10.62107389]
[1773155487532,0.56978249,87.876,87.84,10.62107389]
[1773155487736,11.38016144,87.873,87.841,0.57093481]
[1773155488248,0.56978249,87.869,87.83,10.62107389]
[1773155488443,0.56978249,87.859,87.82,11.75976667]
[1773155488650,11.19085638,87.86,87.821,0.57093481]
[1773155489435,11.3805779,87.869,87.831,11.3855017]
[1773155489630,10.62107389,87.88,87.84,10.62107389]
[1773155489831,0.56978249,87.869,87.831,11.3855017]
[1773155490032,11.37954185,87.877,87.828,0.57093481]
[1773155490033,0.56978249,87.859,87.828,0.57093481]
[1773155490361,0.56978249,87.859,87.827,0.57093481]
[1773155490560,0.56978249,87.859,87.825,39.85189903]
[1773155490561,0.56978249,87.887,87.851,0.57093481]
[1773155490741,11.37764743,87.892,87.861,0.57093481]
[1773155490944,11.37937527,87.879,87.85,11.1920087]
[1773155491249,0.56978249,87.889,87.85,11.1920087]
[1773155491448,0.56978249,87.889,87.86,10.62107389]
[1773155491642,0.56978249,87.889,87.851,0.57093481]
[1773155491847,0.56978249,87.889,87.851,11.9538445]
[1773155491848,11.37954185,87.877,87.851,11.9538445]
[1773155492640,0.56978249,87.876,87.84,11.7595074]
[1773155492841,0.56978249,87.876,87.85,10.62107389]
[1773155493054,45.48067858,87.95,87.86,10.62107389]
[1773155493055,11.37833523,87.887,87.86,10.62107389]
[1773155493245,10.62107389,87.89,87.851,0.57093481]
[1773155493446,11.37834194,87.887,87.851,0.57093481]
[1773155494047,10.62107389,87.89,87.852,11.38278013]
[1773155494243,0.56978249,87.896,87.853,0.57093481]
[1773155494447,0.56978249,87.896,87.86,10.62107389]
[1773155494657,11.37901964,87.882,87.86,10.62107389]
[1773155495057,0.56978249,87.896,87.86,10.62107389]
[1773155495250,11.37775894,87.891,87.86,11.1920087]
[1773155495445,11.37881709,87.883,87.86,10.62107389]
[1773155495643,11.37881709,87.883,87.852,39.83973045]
[1773155496166,11.37798316,87.89,87.861,0.57093481]
[1773155496365,0.56978249,87.897,87.87,10.62107389]
[1773155496559,0.56978249,87.896,87.861,0.57093481]
[1773155497439,0.56978249,87.896,87.87,10.62107389]
[1773155498063,11.37721144,87.895,87.862,11.3814846]
[1773155498966,0.56978249,87.894,87.862,11.3814846]
[1773155499269,0.56978249,87.889,87.858,11.38196173]
[1773155499769,0.56978249,87.889,87.853,1.13826505]
[1773155499770,0.56978249,87.889,87.853,12.52091031]
[1773155500066,0.56978249,87.898,87.86,10.62107389]
[1773155500585,0.56978249,87.869,87.826,0.57093481]
[1773155500875,0.56978249,87.869,87.778,45.5691297]
[1773155500876,0.56978249,87.849,87.806,0.57093481]
[1773155501040,0.56978249,87.849,87.81,10.62107389]
[1773155501243,0.56978249,87.849,87.811,1.13880948]
[1773155501655,11.38329842,87.848,87.811,11.38809488]
[1773155501864,0.56978249,87.847,87.811,11.38809488]
[1773155502841,11.38355758,87.846,87.811,11.38809488]
[1773155503058,11.95334007,87.846,87.811,11.38809488]
[1773155503278,0.56978249,87.839,87.811,11.38809488]
[1773155503577,0.56978249,87.839,87.801,12.52833111]
[1773155503871,0.56978249,87.839,87.801,11.38939192]
[1773155504043,11.38319544,87.849,87.803,0.57093481]
[1773155504241,0.56978249,87.848,87.811,0.57093481]
[1773155504547,0.56978249,87.829,87.791,11.39068925]
[1773155504947,0.56978249,87.819,87.781,11.39196818]
[1773155505851,0.56978249,87.819,87.781,0.57093481]
[1773155506063,0.56978249,87.827,87.791,0.57093481]
[1773155506363,10.62107389,87.82,87.782,0.57093481]
[1773155507065,10.62107389,87.82,87.784,0.61463568]
[1773155507662,10.62107389,87.82,87.786,0.61463568]
[1773155508165,0.62620247,87.837,87.801,0.61463568]
[1773155508364,10.62107389,87.84,87.803,0.61463568]
[1773155508566,0.62620247,87.839,87.803,0.61463568]
[1773155508764,11.24727636,87.83,87.791,0.61463568]
[1773155508966,11.38576096,87.829,87.793,0.61463568]
[1773155509163,0.59947676,87.819,87.786,11.39121416]
[1773155510046,11.38576096,87.829,87.79,11.21621715]
[1773155510047,39.85016337,87.829,87.79,11.21621715]
[1773155510252,0.59947676,87.828,87.791,0.59514326]
[1773155511150,11.38459436,87.838,87.801,0.59514326]
[1773155511563,0.59947676,87.837,87.803,0.59514326]
[1773155512352,11.27482191,87.84,87.805,0.59514326]
[1773155512549,0.59947676,87.839,87.805,0.59514326]
[1773155512971,0.59947676,87.859,87.811,0.59514326]
[1773155513272,0.59947676,87.859,87.81,10.67534515]
[1773155513273,11.27482191,87.85,87.813,0.59514326]
[1773155513458,0.59947676,87.849,87.813,0.59514326]
[1773155513657,10.67534515,87.85,87.813,0.59514326]
[1773155514060,10.67534515,87.86,87.821,0.59514326]
[1773155514266,10.67534515,87.86,87.812,39.85787818]
[1773155514460,10.67534515,87.85,87.813,0.59514326]
[1773155514867,10.67534515,87.86,87.821,0.59514326]
[1773155515658,11.38187322,87.859,87.823,0.59514326]
[1773155515955,0.59947676,87.858,87.823,0.59514326]
[1773155516151,0.59947676,87.839,87.802,0.59514326]
[1773155516364,0.59947676,87.829,87.792,0.59514326]
[1773155516784,1.13826504,87.857,87.772,0.59514326]
[1773155516785,0.59947676,87.819,87.772,0.59514326]
[1773155517074,0.59947676,87.819,87.781,0.59514326]
[1773155517654,39.85515497,87.818,87.781,0.59514326]
[1773155517852,0.59947676,87.817,87.781,0.59514326]
[1773155518054,0.59947676,87.817,87.783,0.59514326]
[1773155518471,11.38718713,87.818,87.791,0.59514326]
[1773155519777,11.38744647,87.816,87.783,0.59514326]
[1773155520772,1.13826504,87.841,87.782,11.3918571]
[1773155520773,0.59947676,87.828,87.79,10.67534515]
[1773155520985,0.59947676,87.828,87.784,1.13915975]
[1773155520986,10.67534515,87.82,87.791,0.59514326]
[1773155521160,0.59947676,87.819,87.782,39.87149985]
[1773155521361,0.59947676,87.819,87.782,11.3918571]
[1773155521761,0.59947676,87.809,87.78,0.59514326]
[1773155522164,0.59947676,87.809,87.78,11.27048841]
[1773155522363,39.85515497,87.818,87.781,0.59514326]
[1773155522676,0.59947676,87.827,87.791,0.59514326]
[1773155523285,39.85061711,87.828,87.791,0.59514326]
[1773155523286,0.59947676,87.819,87.791,0.59514326]
[1773155524254,11.38718713,87.818,87.791,0.59514326]
[1773155524658,11.98666389,87.818,87.791,0.59514326]
[1773155524862,10.67534515,87.84,87.801,0.59514326]
[1773155525062,10.67534515,87.84,87.791,39.86732943]
[1773155525063,0.59947676,87.848,87.811,0.59514326]
[1773155525588,0.59947676,87.829,87.79,10.67534515]
[1773155525883,0.59947676,87.819,87.783,0.59514326]
[1773155526189,0.59947676,87.819,87.783,11.9867906]
[1773155526356,0.59947676,87.82,87.791,0.59514326]
[1773155526556,10.67534515,87.83,87.791,0.59514326]
[1773155526557,0.59947676,87.826,87.791,0.59514326]
[1773155526757,0.59947676,87.826,87.783,39.87096565]
[1773155526758,0.59947676,87.819,87.783,39.87096565]
[1773155526970,11.38605862,87.827,87.791,0.59514326]
[1773155527173,0.59947676,87.826,87.791,0.59514326]
[1773155528480,0.59947676,87.819,87.791,0.59514326]
[1773155529061,39.85197836,87.825,87.793,0.59514326]
[1773155529473,0.59947676,87.824,87.793,0.59514326]
[1773155529677,0.59947676,87.819,87.784,0.59514326]
[1773155529860,0.59947676,87.819,87.784,11.98668568]
[1773155530061,0.59947676,87.824,87.791,0.59514326]
[1773155530554,0.59947676,87.819,87.791,0.59514326]
[1773155530765,0.59947676,87.819,87.792,11.3905595]
[1773155531664,0.59947676,87.819,87.78,10.67534515]
[1773155531976,0.59947676,87.809,87.775,0.59514326]
[1773155532485,0.59947676,87.797,87.77,0.2]
[1773155533059,0.59947676,87.779,87.76,0.2]
[1773155533270,10.67534515,87.79,87.761,0.59514326]
[1773155533470,0.59947676,87.794,87.761,0.59514326]
[1773155533672,11.27482191,87.79,87.761,0.59514326]
[1773155533966,0.59947676,87.79,87.761,0.59514326]
[1773155534390,0.59947676,87.789,87.76,0.2]
[1773155534585,0.59947676,87.779,87.741,0.59514326]
[1773155535086,0.59947676,87.779,87.739,11.39744013]
[1773155535087,11.3910785,87.788,87.751,0.59514326]
[1773155535285,10.67534515,87.78,87.751,0.59514326]
[1773155535667,0.59947676,87.779,87.74,10.67534515]
[1773155535874,0.59947676,87.779,87.741,0.59514326]
[1773155536390,0.59947676,87.779,87.74,10.67534515]
[1773155536391,11.27482191,87.76,87.731,0.59514326]
[1773155536570,0.59947676,87.758,87.732,11.39834951]
[1773155537580,11.39367423,87.768,87.733,0.59514326]
[1773155537774,0.59947676,87.767,87.733,0.59514326]
[1773155538693,11.39393386,87.766,87.734,11.39808968]
[1773155538889,11.99068502,87.787,87.751,0.59514326]
[1773155539109,11.99068502,87.787,87.734,39.89331388]
[1773155539110,0.59947676,87.769,87.74,0.59514326]
[1773155539592,0.59947676,87.769,87.708,1.14014685]
[1773155539593,0.6656038,87.759,87.72,10.67534515]
[1773155539893,0.6656038,87.759,87.721,11.39977884]
[1773155540094,0.6656038,87.759,87.722,0.68956198]
[1773155540276,0.6656038,87.749,87.716,11.40030516]
[1773155540481,0.6656038,87.749,87.717,0.68956198]
[1773155540677,10.67534515,87.74,87.718,11.40016872]
[1773155541076,0.6656038,87.741,87.718,11.40016872]
[1773155541390,10.67534515,87.74,87.709,0.68956198]
[1773155541589,0.6656038,87.719,87.694,11.4032887]
[1773155541772,0.6656038,87.719,87.69,1.34038088]
[1773155541974,0.6656038,87.699,87.671,11.40628029]
[1773155542373,0.6656038,87.709,87.672,0.68956198]
[1773155542673,11.40016872,87.718,87.682,11.40484934]
[1773155542875,11.40016872,87.718,87.683,0.68956198]
[1773155543074,40.56619432,87.718,87.683,0.68956198]
[1773155543276,0.6656038,87.717,87.683,0.68956198]
[1773155543881,10.67534515,87.71,87.683,0.68956198]
[1773155544194,11.34094895,87.71,87.681,11.40492926]
[1773155544894,11.40042526,87.717,87.681,0.68956198]
[1773155545096,10.67534515,87.71,87.681,0.68956198]
[1773155545290,11.40042526,87.717,87.681,0.68956198]
[1773155545688,10.67534515,87.72,87.691,0.68956198]
[1773155545893,3.69383402,87.745,87.674,39.920615]
[1773155545894,10.67534515,87.71,87.679,0.68956198]
[1773155546483,0.6656038,87.709,87.679,0.68956198]
[1773155546684,0.6656038,87.709,87.671,12.09584227]
[1773155546997,45.58924841,87.74,87.67,0.2]
[1773155546998,10.67534515,87.69,87.67,0.2]
[1773155548081,12.06379449,87.734,87.681,0.68956198]
[1773155548276,0.6656038,87.734,87.695,0.68956198]
[1773155548480,10.67534515,87.72,87.695,0.68956198]
[1773155548787,10.67534515,87.71,87.681,0.57197547]
[1773155548995,10.67534515,87.7,87.67,0.2]
[1773155549296,11.40133851,87.709,87.672,0.68956198]
[1773155549598,11.40009546,87.719,87.681,0.68956198]
[1773155550299,10.67534515,87.71,87.681,0.68956198]
[1773155550695,0.6656038,87.718,87.681,0.68956198]
[1773155551193,10.67534515,87.72,87.683,0.68956198]
[1773155551594,11.39932056,87.725,87.691,0.68956198]
[1773155551988,10.67534515,87.72,87.691,0.68956198]
[1773155552382,11.39932056,87.725,87.691,0.68956198]
[1773155553195,0.6656038,87.728,87.692,11.40354878]
[1773155553393,10.67534515,87.72,87.693,0.68956198]
[1773155553894,0.6656038,87.728,87.693,0.68956198]
[1773155554494,0.6656038,87.728,87.694,0.68956198]
[1773155555399,11.39873929,87.729,87.696,0.68956198]
[1773155556194,0.6656038,87.728,87.695,11.40315867]
[1773155556495,0.6656038,87.729,87.696,0.68956198]
[1773155557805,0.6656038,87.749,87.711,0.68956198]
[1773155558101,11.34094895,87.74,87.711,0.68956198]
[1773155558307,0.6656038,87.739,87.711,0.68956198]
[1773155559892,0.6656038,87.739,87.7,11.24667029]
[1773155559893,11.39757003,87.738,87.713,0.68956198]
[1773155561602,0.6656038,87.747,87.715,0.68956198]
[1773155561981,11.39614126,87.749,87.715,0.68956198]
[1773155562201,0.6656038,87.748,87.714,11.4006886]
[1773155562508,0.6656038,87.739,87.71,11.40117563]
[1773155563001,0.6656038,87.739,87.698,11.40276859]
[1773155563212,0.6656038,87.739,87.7,10.67534515]
[1773155563506,0.6656038,87.739,87.698,39.90969007]
[1773155563507,0.6656038,87.748,87.711,0.68956198]
[1773155563687,11.39640101,87.747,87.713,0.68956198]
[1773155564489,12.06200481,87.747,87.713,0.68956198]
[1773155564689,0.6656038,87.746,87.714,11.4006886]
[1773155564906,0.6656038,87.746,87.714,12.09025058]
[1773155565410,0.6656038,87.719,87.687,0.68956198]
[1773155565616,0.6656038,87.709,87.671,11.40628029]
[1773155565904,0.6656038,87.709,87.67,10.87534515]
[1773155565905,0.6656038,87.699,87.67,0.2]
[1773155566296,0.6656038,87.712,87.68,10.67534515]
[1773155566483,0.6656038,87.72,87.681,0.68956198]
[1773155566806,0.6656038,87.72,87.68,10.67534515]
[1773155566807,0.65842255,87.718,87.683,0.67617625]
[1773155567995,0.65842255,87.709,87.674,0.67617625]
[1773155569003,11.4014685,87.708,87.675,11.4057599]
[1773155569206,11.4014685,87.708,87.675,12.13288581]
[1773155569409,0.71323751,87.707,87.675,12.13288581]
[1773155569612,0.71323751,87.707,87.672,0.72712591]
[1773155569798,10.67534515,87.7,87.672,0.72712591]
[1773155570105,10.67534515,87.7,87.67,0.2]
[1773155570106,0.71323751,87.699,87.67,0.2]
[1773155570689,11.4014685,87.708,87.672,0.72712591]
[1773155570995,28.50032326,87.719,87.681,0.72712591]
[1773155570996,11.40120852,87.71,87.681,0.72712591]
[1773155571800,0.71323751,87.709,87.682,11.40484934]
[1773155572289,0.71323751,87.709,87.67,0.2]
[1773155572290,0.71323751,87.709,87.67,10.87534515]
[1773155572492,0.71323751,87.709,87.67,0.2]
[1773155572719,0.71323751,87.709,87.672,11.40615019]
[1773155573207,0.71323751,87.709,87.67,0.2]
[1773155573387,0.71323751,87.699,87.67,0.2]
[1773155573584,11.40276859,87.698,87.67,0.2]
[1773155573800,0.71323751,87.697,87.67,0.2]
[1773155574592,0.71323751,87.689,87.67,0.2]
[1773155574990,0.71323751,87.689,87.66,0.2]
[1773155575401,0.71323751,87.679,87.645,12.13678989]
[1773155575600,1.42524856,87.704,87.641,11.41015665]
[1773155575601,0.71323751,87.669,87.641,11.41015665]
[1773155575993,0.71323751,87.669,87.638,0.2685495]
[1773155576405,0.71323751,87.669,87.639,11.41044512]
[1773155576697,0.71323751,87.677,87.64,0.72712591]
[1773155576897,0.71323751,87.677,87.64,3.9995236]
[1773155577110,0.71323751,87.677,87.641,0.72712591]
[1773155577517,0.71323751,87.669,87.641,0.72712591]
[1773155577902,11.40667062,87.668,87.641,0.72712591]
[1773155578104,11.40536964,87.678,87.643,0.72712591]
[1773155579208,11.40536964,87.678,87.651,0.72712591]
[1773155579404,12.11806762,87.683,87.651,0.72712591]
[1773155580219,12.11806762,87.683,87.638,0.2685495]
[1773155580220,11.40334838,87.694,87.661,0.72712591]
[1773155580416,0.71323751,87.696,87.661,0.72712591]
[1773155580614,0.71323751,87.696,87.638,0.2685495]
[1773155580615,0.71323751,87.679,87.641,0.72712591]
[1773155580811,0.71323751,87.669,87.638,11.6790143]
[1773155581020,0.71323751,87.659,87.638,0.2685495]
[1773155581405,10.7155753,87.65,87.638,0.2685495]
[1773155581617,11.42881281,87.65,87.624,11.41237095]
[1773155581996,0.71323751,87.649,87.62,0.2]
[1773155582196,11.40927345,87.648,87.62,0.2]
[1773155582412,0.71323751,87.647,87.62,0.2]
[1773155583426,8.98729881,87.606,87.582,0.72712591]
[1773155583611,8.98729881,87.606,87.541,45.6923772]
[1773155583612,10.7155753,87.59,87.561,0.74348062]
[1773155583807,10.7155753,87.58,87.544,0.74348062]
[1773155584021,10.7155753,87.6,87.561,0.74348062]
[1773155584324,11.41565542,87.599,87.563,0.74348062]
[1773155584620,10.7155753,87.6,87.571,0.74348062]
[1773155584806,8.98729881,87.606,87.571,0.74348062]
[1773155585004,10.7155753,87.63,87.591,0.74348062]
[1773155585708,10.7155753,87.64,87.601,0.74348062]
[1773155586505,10.7155753,87.64,87.6,10.7155753]
[1773155586506,11.41044512,87.639,87.603,0.74348062]
[1773155586725,10.7155753,87.64,87.603,0.74348062]
[1773155587029,22.12593785,87.64,87.603,0.74348062]
[1773155587205,50.65172516,87.64,87.603,0.74348062]
[1773155588124,10.7155753,87.62,87.584,0.74348062]
[1773155588508,11.41304968,87.619,87.586,0.74348062]
[1773155589722,11.41251537,87.624,87.591,0.74348062]
[1773155589921,10.7155753,87.62,87.591,0.74348062]
[1773155590126,10.7155753,87.6,87.571,0.74348062]
[1773155590511,10.7155753,87.6,87.542,0.57538783]
[1773155590512,0.02037059,87.589,87.55,0.74348062]
[1773155590709,10.7155753,87.57,87.55,0.74348062]
[1773155591026,10.7155753,87.6,87.561,0.74348062]
[1773155591209,10.7155753,87.59,87.561,0.74348062]
[1773155591407,10.7155753,87.58,87.548,0.74348062]
[1773155591927,10.7155753,87.58,87.539,11.42347982]
[1773155591928,10.7155753,87.57,87.539,11.42347982]
[1773155592107,10.7155753,87.55,87.519,0.74348062]
[1773155592309,10.7155753,87.55,87.51,10.9305753]
[1773155592310,10.7155753,87.56,87.522,0.74348062]
[1773155592525,103.9,88.525,87.541,0.74348062]
[1773155592526,10.7155753,87.58,87.541,0.74348062]
[1773155592823,11.41826236,87.579,87.552,0.74348062]
[1773155593005,10.7155753,87.59,87.561,0.74348062]
[1773155593406,10.7155753,87.61,87.571,0.74348062]
[1773155593608,10.7155753,87.6,87.571,0.74348062]
[1773155593831,1.42676147,87.611,87.581,0.74348062]
[1773155594020,10.7155753,87.62,87.581,0.74348062]
[1773155594723,10.7155753,87.61,87.58,10.7155753]
[1773155594929,11.41097205,87.635,87.601,0.74348062]
[1773155595457,10.7155753,87.64,87.601,0.74348062]
[1773155595630,5.11976543,87.662,87.621,0.74348062]
[1773155595631,10.7155753,87.65,87.621,0.74348062]
[1773155595932,10.7155753,87.65,87.611,0.74348062]
[1773155596130,10.7155753,87.64,87.611,0.74348062]
[1773155596316,10.7155753,87.64,87.601,0.74348062]
[1773155596513,39.9261862,87.662,87.59,0.74348062]
[1773155596514,10.7155753,87.62,87.59,0.74348062]
[1773155596729,11.41304968,87.619,87.591,11.41669806]
[1773155596933,11.41304968,87.619,87.59,0.74348062]
[1773155597123,11.41174725,87.629,87.592,0.74348062]
[1773155597329,1.42648468,87.628,87.592,0.74348062]
[1773155597523,0.03675415,87.668,87.621,0.74348062]
[1773155597838,10.7155753,87.66,87.621,0.74348062]
[1773155598133,0.85216124,87.676,87.592,1.14165677]
[1773155598134,10.7155753,87.67,87.631,0.74348062]
[1773155598438,10.7155753,87.66,87.631,0.74348062]
[1773155598611,10.75457382,87.65,87.61,11.45905592]
[1773155598816,11.40914328,87.649,87.612,0.74348062]
[1773155599031,11.40914328,87.649,87.59,0.74348062]
[1773155599032,0.03899852,87.632,87.59,0.74348062]
[1773155599229,10.7155753,87.62,87.591,0.74348062]
[1773155599729,10.7155753,87.62,87.58,22.87708269]
[1773155599931,10.7155753,87.62,87.58,11.45905592]
[1773155600314,10.75898685,87.62,87.58,11.45905592]
[1773155600721,10.7155753,87.63,87.591,0.74348062]
[1773155601327,10.7155753,87.62,87.58,11.45905592]
[1773155601632,10.7155753,87.62,87.58,22.87711633]
[1773155601817,10.7155753,87.62,87.581,0.74348062]
[1773155602017,10.7155753,87.61,87.581,0.74348062]
[1773155602317,10.7155753,87.63,87.591,0.74348062]
[1773155602524,22.12589022,87.64,87.601,0.74348062]
[1773155602719,11.41174725,87.629,87.601,0.74348062]
[1773155602924,11.41174725,87.629,87.602,0.74348062]
[1773155603318,11.41107738,87.635,87.602,0.74348062]
[1773155604026,11.40937889,87.648,87.611,0.74348062]
[1773155604231,10.7155753,87.64,87.611,0.74348062]
[1773155604538,11.40937889,87.648,87.611,0.74348062]
[1773155604736,11.41044512,87.639,87.601,12.15886327]
[1773155605063,10.7155753,87.66,87.621,0.74348062]
[1773155605333,10.7155753,87.65,87.621,0.74348062]
[1773155605743,10.7155753,87.65,87.583,45.67080155]
[1773155605744,10.7155753,87.63,87.596,0.74348062]
[1773155605918,10.7155753,87.63,87.598,0.74348062]
[1773155606250,10.7155753,87.65,87.611,0.74348062]
[1773155607738,39.92744612,87.659,87.621,0.74348062]
[1773155607739,11.40914328,87.649,87.621,0.74348062]
[1773155608423,39.93200149,87.649,87.621,0.74348062]
[1773155608742,10.7155753,87.64,87.6,10.7155753]
[1773155608946,39.93200149,87.649,87.566,1.14199575]
[1773155608947,0.73842515,87.629,87.566,1.14199575]
[1773155609116,0.73842515,87.619,87.58,10.7155753]
[1773155609320,3.69383402,87.642,87.57,10.7155753]
[1773155609321,0.73842515,87.609,87.57,10.7155753]
[1773155609519,10.7155753,87.6,87.567,11.4198271]
[1773155609741,10.7155753,87.59,87.55,10.7155753]
[1773155609922,10.7155753,87.58,87.546,11.42256642]
[1773155610124,0.73842515,87.589,87.55,10.7155753]
[1773155610453,10.7155753,87.58,87.546,11.42256642]